Cogmind - Beta 15 @@@ ROGUE MODE // 2025.05.30 @ 19:59:10 Player: DZKane Result: Destroyed by S0-FVP(j) with Overtuned Pulse Rifle Performance ------------- Evolutions (0) 0 Regions Visited (3) 600 Robots Destroyed (14) 70 Value Destroyed (507) 507 Prototype IDs (9) 180 Alien Tech Used (0) 0 Bonus (800) 800 TOTAL SCORE: 2157 Bonus ------- Registered with UFD 300 Met Optimus in HQ 500 Cogmind --------- Core Integrity 0/250 Matter 300/300 Energy 94/100 System Corruption 0% Temperature Cool (27) Movement Walking (170) Ox1 Location -9/Scraptown Parts ------- > --- POWER (1) -------- (None) > --- PROPULSION (2) --- Overtuned Titanium Leg VSS Leg > --- UTILITY (2) ------ Large Storage Unit Structural Scanner > --- WEAPON (2) ------- Chainsword > --- INVENTORY (15) --- Overtuned Titanium Leg Overtuned Titanium Leg Overtuned Titanium Leg Scrap Suit Deep Structural Scanner Surveybot 17 Chip Hardened Light Armor Plating Tech Extrapolator Mapping Drone Bay (3/3) Phase Cannon Vortex Trap Vortex Trap Vortex Trap Peak State ------------ > --- POWER ------------ Improved Deuterium Engine > --- PROPULSION ------- Overtuned Titanium Leg VSS Leg > --- UTILITY ---------- Large Storage Unit Structural Scanner > --- WEAPON ----------- Heavy Assault Rifle Chainsword > --- INVENTORY -------- Overtuned Titanium Leg Overtuned Titanium Leg Overtuned Titanium Leg Scrap Suit Deep Structural Scanner Surveybot 17 Chip Hardened Light Armor Plating Tech Extrapolator Mapping Drone Bay Phase Cannon Vortex Trap Vortex Trap Vortex Trap [Rating: 23] Favorites ----------- Power Improved Deuterium Engine Engine Improved Deuterium Engine Propulsion Aluminum Leg Leg Aluminum Leg Utility Structural Scanner Device Structural Scanner Storage Large Storage Unit Protection Propulsion Shielding Weapon Heavy Assault Rifle Ballistic Gun Heavy Assault Rifle Special Weapon Welding Torch Slashing Weapon Chainsword Build | -11 -10 -10 -9 ------- Run | Yrd Mat Sub Scr Slots Evolved . | . . . . Power . | . . . . Propulsion . | . . . . Utility . | . . . . Weapon . | . . . . Parts Attached 17 | . 4 1 12 Power 3 | . 1 . 2 Engine 3 | . 1 . 2 Core . | . . . . Reactor . | . . . . Propulsion 5 | . . . 5 Treads . | . . . . Leg 5 | . . . 5 Wheel . | . . . . Hover . | . . . . Flight . | . . . . Utility 5 | . 2 1 2 Device 1 | . . 1 . Storage 3 | . 1 . 2 Processor . | . . . . Hackware . | . . . . Protection 1 | . 1 . . Artifact . | . . . . Weapon 4 | . 1 . 3 Energy Gun . | . . . . Energy Cannon . | . . . . Ballistic Gun 2 | . 1 . 1 Ballistic Cannon . | . . . . Launcher . | . . . . Special Weapon 1 | . . . 1 Impact Weapon . | . . . . Slashing Weapon 1 | . . . 1 Piercing Weapon . | . . . . Special Melee Weapon . | . . . . Unidentified Prototypes . | . . . . Parts Lost 7 | . 3 . 4 Power 2 | . 1 . 1 Propulsion 2 | . . . 2 Utility 1 | . 1 . . Weapon 2 | . 1 . 1 Highest Loss Streak 2 | . 2 . 2 To Critical Strikes . | . . . . Average Backups 7 | 6 9 13 7 Power . | 1 1 1 . Propulsion 3 | 4 5 8 2 Utility 2 | . 1 2 2 Weapon 1 | 1 1 1 1 Tool/Special . | . . . . Unused Backups 34 | . 5 . 29 Power 2 | . 1 . 1 Propulsion 13 | . 2 . 11 Utility 10 | . . . 10 Weapon 8 | . 2 . 6 Tool/Special 1 | . . . 1 Average Slot Usage (%) 95 | . 97 100 94 Engine 10 | . 13 14 9 Leg 27 | . 28 28 27 Device 11 | . . 14 14 Storage 13 | . 14 14 13 Protection 2 | . 12 . . Ballistic Gun 17 | . 27 28 15 Slashing Weapon 10 | . . . 12 Peak Build Rating 23 | 6 8 8 23 Average Rating 12 | 6 7 8 13 On Entrance 6 | 6 6 7 8 Naked Turns . | . . . . Heaviest Build 37 | 12 28 28 37 Greatest Support 31 | 20 20 20 31 Greatest Overweight (x) 3 | . 1 1 3 Average Overweight (x) . | . . 1 . Largest Inventory Capacity 15 | 8 15 15 15 Average Capacity 12 | 8 12 15 12 Most Carried 15 | 6 14 13 15 Average Carried 8 | 6 9 13 8 Final Capacity 15 | 8 15 15 15 Final Carried 14 | 6 14 13 14 Class Distribution -------------------- 100% | Mutant Dominant Class ---------------- Mutant | -10/Materials Mutant | -10/Subcaves Mutant | -9/Scraptown Resources | -11 -10 -10 -9 ----------- Run | Yrd Mat Sub Scr Matter Collected 514 | 200 133 . 181 Remotely . | . . . . Salvage Created 616 | . 412 . 204 Parts 27 | . 20 . 7 Haulers Intercepted . | . . . . Recyclers Shooed 2 | . 2 . . Parts Field Recycled . | . . . . Retrieved Matter . | . . . . Parts Self-Destructed 12 | . . 9 3 Prevented . | . . . . Kills | -11 -10 -10 -9 ------- Run | Yrd Mat Sub Scr Combat Hostiles Destroyed 13 | . 10 . 3 Melee 3 | . . . 3 Guns 10 | . 10 . . Classes Destroyed 4 | . 2 . 2 Operator 1 | . 1 . . Grunt 10 | . 10 . . Explorer 1 | . . . 1 Scrapper 2 | . . . 2 Best Kill Streak 3 | . 3 . 2 Combat Bots Only 3 | . 3 . 2 Max Kills in Single Turn 1 | . 1 . 1 Gunslinging . | . . . . Exploded . | . . . . Melee 1 | . . . 1 Uniques/NPCs Destroyed . | . . . . Combat | -11 -10 -10 -9 -------- Run | Yrd Mat Sub Scr Hostile Shots Fired 131 | . 65 . 66 Missed 37 | . 22 . 15 Hits 94 | . 43 . 51 Melee 3 | . . . 3 Projectile 91 | . 43 . 48 Critical Strikes 2 | . . . 2 Damage Taken 1193 | . 503 . 690 Core 260 | . 34 . 226 Absorbed by Shields . | . . . . Redirected to Shielding 51 | . 51 . . Core Remaining (%) 100 | 100 . . . Volleys Fired 56 | . 49 . 7 Largest 2 | . 2 . 1 Hottest 40 | . 40 . 23 Shots Fired 105 | . 98 . 7 Gun 105 | . 98 . 7 Cannon . | . . . . Launcher . | . . . . Special . | . . . . Kinetic 105 | . 98 . 7 Thermal . | . . . . Explosive . | . . . . Electromagnetic . | . . . . Robot Hit Streak 7 | . 7 . 2 Robot Miss Streak 5 | . 5 . 2 Penetration Max . | . . . . Secondary Targets 1 | . 1 . . Max Gunslinging Chain 1 | . 1 . . Shots Hit Robots 66 | . 57 . 9 Core Hits 35 | . 28 . 7 Critical Kills . | . . . . Critical Parts Destroyed 1 | . 1 . . Critical Strikes 1 | . 1 . . Destroy 1 | . 1 . . Melee Attacks 6 | . . . 6 Impact . | . . . . Slashing 6 | . . . 6 Piercing . | . . . . Sneak Attacks . | . . . . Combat Hostiles . | . . . . Follow-up Attacks . | . . . . Damage Inflicted 659 | . 480 . 179 Guns 511 | . 480 . 31 Cannons . | . . . . Explosions . | . . . . Melee 148 | . . . 148 Ramming . | . . . . Kinetic 511 | . 480 . 31 Thermal . | . . . . Explosive . | . . . . Electromagnetic . | . . . . Impact . | . . . . Slashing 148 | . . . 148 Piercing . | . . . . Highest Corruption . | . . . . Average Corruption . | . . . . Corruption Purged . | . . . . Corruption Blocked . | . . . . Overload Shots . | . . . . Overflow Damage . | . . . . Projectiles . | . . . . Explosions . | . . . . Melee . | . . . . Knockbacks . | . . . . Impact . | . . . . Kinetic . | . . . . Secondary . | . . . . Self-Inflicted Damage . | . . . . Shots . | . . . . Rammed . | . . . . Targets Rammed . | . . . . Kicked . | . . . . Crushed . | . . . . Highest Temperature 32 | . 18 . 32 Average Temperature 9 | . 8 . 17 Received Heat Transfer 533 | . 279 . 254 Siege Activations . | . . . . Martial Activations . | . . . . Shielding Activations . | . . . . Robots Disrupted . | . . . . Combat Hostiles . | . . . . Robots Corrupted . | . . . . Combat Hostiles . | . . . . Parts Fried . | . . . . Impact Corruptions . | . . . . Robots Melted . | . . . . Combat Hostiles . | . . . . Parts Melted 1 | . . . 1 Heat Transferred . | . . . . Parts Sabotaged . | . . . . Parts Stolen . | . . . . Parts Stripped . | . . . . Power Chain Reactions . | . . . . Alert | -11 -10 -10 -9 ------- Run | Yrd Mat Sub Scr Maximum Alert Level . | . . . . Low Security (%) 100 | 100 100 . . Level 1 . | . . . . Level 2 . | . . . . Level 3 . | . . . . Level 4 . | . . . . Level 5 . | . . . . High Security . | . . . . Max Security . | . . . . Peak Influence 114 | . 114 . . Initial . | . . . . Average 38 | . 38 . . Influence Increases 317 | . 317 . . Destroy 0b10 Robot/C 200 | . 200 . . Destroy 0b10 Robot/NC 5 | . 5 . . Destroy Leader 40 | . 40 . . Successful Hack 12 | . 12 . . Lose Combat Pursuer 60 | . 60 . . Influence Decreases 317 | . 245 66 6 Entered New Map 42 | . . 36 6 Time Decay 259 | . 229 30 . Lost Part 16 | . 16 . . Squads Dispatched 3 | . 3 . . Investigation 1 | . 1 . . Extermination . | . . . . Reinforcement 2 | . 2 . . Assault . | . . . . Garrison . | . . . . Intercept . | . . . . Searches Triggered . | . . . . Construction Impeded . | . . . . Haulers Reinforced . | . . . . Active Scanning Responses . | . . . . Cargo Convoy Interrupts . | . . . . Stealth | -11 -10 -10 -9 --------- Run | Yrd Mat Sub Scr Distress Signals . | . . . . Communications Jammed . | . . . . Distress Signals . | . . . . Times Spotted 42 | . 25 . 17 Peak Tracking Total 6 | . 6 . 4 Tactical Retreats 2 | . 2 . . Traps | -11 -10 -10 -9 ------- Run | Yrd Mat Sub Scr Traps Triggered . | . . . . Indirectly . | . . . . Trap Hack Attempts . | . . . . Triggered . | . . . . Disarmed . | . . . . Reprogrammed . | . . . . Reused . | . . . . Traps Extracted . | . . . . Installed . | . . . . Triggered . | . . . . Most Traps Carried 3 | . . . 3 Machines | -11 -10 -10 -9 ---------- Run | Yrd Mat Sub Scr Machines Disabled . | . . . . Max in Single Turn . | . . . . Machines Repaired . | . . . . Machines Dismantled . | . . . . Machines Sabotaged . | . . . . Overloaded Fab Kills . | . . . . Hacking | -11 -10 -10 -9 --------- Run | Yrd Mat Sub Scr Machines Accessed 7 | . 1 . 6 Terminals 1 | . 1 . . Fabricators . | . . . . Repair Stations . | . . . . Recycling Units . | . . . . Scanalyzers . | . . . . Garrison Access . | . . . . Total Hacks 47 | . 3 . 44 Successful 45 | . 1 . 44 Failed 2 | . 2 . . Catastrophic 1 | . 1 . . Database Lockouts . | . . . . Manual . | . . . . Terminals 3 | . 3 . . Fabricators . | . . . . Repair Stations . | . . . . Recycling Units . | . . . . Scanalyzers . | . . . . Garrison Access . | . . . . Terminal Hacks 45 | . 1 . 44 Record 43 | . . . 43 Prototype ID Bank 1 | . 1 . . Proto ID Catalog 1 | . . . 1 Fabricator Hacks . | . . . . Repair Station Hacks . | . . . . Recycling Unit Hacks . | . . . . Scanalyzer . | . . . . Garrison Access Hacks . | . . . . Unauthorized Hacks . | . . . . Terminals . | . . . . Fabricators . | . . . . Repair Stations . | . . . . Recycling Units . | . . . . Scanalyzers . | . . . . Garrison Access . | . . . . Data Cores Recovered 1 | . 1 . . Used 1 | . 1 . . Hacking Detections 1 | . 1 . . Full Trace Events 1 | . 1 . . Feedback Events . | . . . . Feedback Blocked . | . . . . Robot Schematics Acquired . | . . . . Robots Built . | . . . . Authchips . | . . . . Time . | . . . . Total Robot Build Rating . | . . . . Part Schematics Acquired . | . . . . Parts Built . | . . . . Authchips . | . . . . Time . | . . . . Total Part Build Rating . | . . . . Parts Repaired . | . . . . Time . | . . . . Parts Recycled . | . . . . Recycled Matter . | . . . . Retrieved Matter . | . . . . Retrieved Components . | . . . . Parts Scanalyzed . | . . . . Part Schematics Acquired . | . . . . Parts Damaged . | . . . . Bothacking | -11 -10 -10 -9 ------------ Run | Yrd Mat Sub Scr Used RIF Installer . | . . . . Robots Hacked . | . . . . Non-combat . | . . . . Combat . | . . . . Robot Hacks Applied . | . . . . Relay Couplers Released . | . . . . Fabnet Peak Effective % . | . . . . Robots Rewired . | . . . . Allies Hacked . | . . . . Hacks Repelled . | . . . . Allies | -11 -10 -10 -9 -------- Run | Yrd Mat Sub Scr Total Allies . | . . . . Largest Group . | . . . . Highest-Rated Group . | . . . . Highest-Rated Ally . | . . . . Total Orders . | . . . . Ally Attacks . | . . . . Total Damage . | . . . . Kills . | . . . . Allies Corrupted . | . . . . Allies Melted 10 | . . . 10 Intel | -11 -10 -10 -9 ------- Run | Yrd Mat Sub Scr Active Infowar (turns) 4370 | . . 77 4293 Structural 4370 | . . 77 4293 Robot Analysis Total . | . . . . Derelict Logs Recovered . | . . . . Drone Launches . | . . . . Drone Recoveries . | . . . . Exploration | -11 -10 -10 -9 ------------- Run | Yrd Mat Sub Scr Turns Passed 5352 | 3 977 77 4295 Spaces Moved 2757 | 3 327 35 2392 Core . | . . . . Treads . | . . . . Legs 2757 | 3 327 35 2392 Wheels . | . . . . Hover . | . . . . Flight . | . . . . Fastest Speed 95 | 120 120 190 95 Average Speed 174 | 120 168 190 175 Slowest Speed 360 | 120 190 190 360 Overloaded Moves . | . . . . Propulsion Burnouts . | . . . . Robots Hopped . | . . . . Potential Cave-ins . | . . . . Cave-ins Triggered . | . . . . Exploration Rate (%) 36 | 2 45 4 94 Regions Visited 3 Branch Regions 2 Pre-discovered Areas 4 | . . . 4 Known Exits Taken . | . . . . Unknown Exits Taken 3 | 1 1 1 . Scrap Searched 4 | . . . 4 Spaces Dug . | . . . . Terrain Destroyed . | . . . . Melee . | . . . . Projectile . | . . . . AOE . | . . . . Terrain Rammed . | . . . . Walls Destroyed . | . . . . Machines Disabled . | . . . . Actions | -11 -10 -10 -9 --------- Run | Yrd Mat Sub Scr Total 3201 | 2 673 46 2480 Wait 302 | . 285 11 6 Move 2754 | 2 326 34 2392 Hop . | . . . . Pick Up 36 | . 9 . 27 Fast Attach 9 | . 1 . 8 Attach 5 | . 2 1 2 Detach 1 | . . . 1 Swap 6 | . 1 . 5 Drop 26 | . . . 26 Fire 56 | . 49 . 7 Melee 6 | . . . 6 Ram . | . . . . Kick . | . . . . Crush . | . . . . Escape Stasis . | . . . . Rewire . | . . . . Trap . | . . . . Miscellaneous . | . . . . Route ------- -11/Scrapyard -10/Materials (discovered 2 exits: [*Mat] / [*Sub]) -10/Subcaves -9/Scraptown (discovered 2 exits: [*Fac x2]) History --------- Turn | Location | Event 1 | -11/Scrapyard | Discovered new exit (range 1) 4 | -11/Scrapyard | Entered Materials 5 | -10/Materials | Met a group of wandering Federalists 304 | -10/Materials | Build established: Mutant 341 | -10/Materials | Discovered new exit (range 6) 389 | -10/Materials | Discovered new exit (range 5) 981 | -10/Materials | Entered Subcaves 982 | -10/Subcaves | Continued accompanying wandering Federalists (5) 982 | -10/Subcaves | Approached by a straggling Scientist 1031 | -10/Subcaves | Scientist uncovered a shortcut to Scraptown 1058 | -10/Subcaves | Entered Scraptown 1645 | -9/Scraptown | Discovered new exit (range 5) 1740 | -9/Scraptown | Visited Science Testing Area 1767 | -9/Scraptown | Visited Cyclists 1829 | -9/Scraptown | Visited Red Mages 1900 | -9/Scraptown | Heard Great Nut preacher, LISTEN AND RECITE! 1900 | -9/Scraptown | Visited Symbiants 1966 | -9/Scraptown | Visited TADAMA 2084 | -9/Scraptown | Visited Scrapoid Research Area 2135 | -9/Scraptown | Visited Shadow of the Wyrm 2746 | -9/Scraptown | Visited UFD Registry 2746 | -9/Scraptown | Registered with UFD as "Longtube" 2834 | -9/Scraptown | Visited Botcube Research 2923 | -9/Scraptown | Visited Cartography Club 3075 | -9/Scraptown | Found Surveybot 17 Chip 3980 | -9/Scraptown | Learned location of Lower Caves (-7) 3980 | -9/Scraptown | Learned location of Archives (-5) 3980 | -9/Scraptown | Learned 12 Upper Caves zone layouts 3980 | -9/Scraptown | Learned 20 Upper Caves zone layouts 3980 | -9/Scraptown | Learned 8 Proximity Caves zone layouts 3980 | -9/Scraptown | Learned 12 Proximity Caves zone layouts 3980 | -9/Scraptown | Learned 4 Armory zone layouts 3980 | -9/Scraptown | Learned location of 1 exit from Research 3980 | -9/Scraptown | Learned location of 3 exits from Upper Caves 4081 | -9/Scraptown | Found Deep Structural Scanner 4168 | -9/Scraptown | Visited Chapter 10 4201 | -9/Scraptown | Visited LU-1G1's Boring Crew 4518 | -9/Scraptown | Visited Science Guys 4606 | -9/Scraptown | Visited Supply Room 4707 | -9/Scraptown | Met Optimus 4707 | -9/Scraptown | Accepted into 0bPrime 4848 | -9/Scraptown | Visited Modified Component R&D 4985 | -9/Scraptown | Civil war broke out across Scraptown 5022 | -9/Scraptown | Found Scrap Suit 5039 | -9/Scraptown | Discovered new exit (range 12) 5083 | -9/Scraptown | Lost 8 allies 5125 | -9/Scraptown | Visited A0-MCA Data Center 5184 | -9/Scraptown | Lost 5 allies 5189 | -9/Scraptown | Optimus destroyed in the chaos of civil war 5254 | -9/Scraptown | Core integrity fell below 50% 5296 | -9/Scraptown | Core integrity fell below 20% 5353 | -9/Scraptown | Destroyed by S0-FVP(j) with Overtuned Pulse Rifle Last Messages --------------- 05286_ Bolt penetrates Machine. 05286_ Dropped Imp. Deuterium Engine. 05289_ LK-V0Y(p) destroyed. 05289_ Bolt penetrates A7-ZLW(x). 05295_ Penetrated by Bolt. 05298_ Bolt penetrates A7-ZLW(x). 05298_ Penetrated by Bolt. 05301_ Bolt penetrates Machine. 05301_ Penetrated by Bolt. 05305_ A7-ZLW(x): "0bPrime is tearing us apart, don't fall for it!" 05306_ Penetrated by Bolt. 05312_ A7-ZLW(x) destroyed. 05314_ Penetrated by Bolt. 05317_ 2K-VWD(E): "0bPrime accepts all who want to win. Surrender now!" 05333_ WS-ZV4(x) destroyed. 05336_ Acquired 12 matter. 05349_ Hvy. Assault Rifle destroyed. 05349_ Critical hit (Burn: +50). Map ----- +----------------------------------------------------+ | | | | | | | | | | | | | ?????????????????????????????????????????????????? | | ?????????????????????????????????????????????????? | | ?????????????????????????????????????????????????? | | ?????????????????????????????????????????????????? | | ?????????????????????????????????????????????????? | | ?????????????????????????????????????????????????? | | ?????????????????????????????????????????????????? | | ?????????????????????????????????????????????????? | | ?????????????????????????????????????????????????? | | ???????????????????????????????????###???????????? | | ???????????????????????????????????###???????????? | | ???????????????????????????????????!!!???????????? | | ?????################?######??????*%=**??????????? | | ????###########################??%%!*=[??????????? | | ?"?"##"""##""|##"""#####=!#### !p